lending/lending_fUSD_20240711
["ID","MTS","AMOUNT","RATE_DAILY","PERIOD"]
[331735242,1720718232183,-250.0,0.00012695,2]
[331735243,1720718232211,-398.11,0.00012729,2]
[331735244,1720718232236,-260.0,0.0001273,2]
[331735245,1720718232264,-260.0,0.0001284,2]
[331735246,1720718232288,-500.0,0.00012904,2]
[331735247,1720718232312,-260.0,0.0001295,2]
[331735248,1720718232336,-260.0,0.0001305,2]
[331735249,1720718232361,-760.52949314,0.00013128,2]
[331735250,1720718232385,-155.0,0.00013128,2]
[331735251,1720718232408,-260.0,0.0001316,2]
[331735252,1720718232432,-260.0,0.0001326,2]
[331735253,1720718232457,-3166.236761,0.00013331,2]
[331735254,1720718232481,-260.0,0.0001337,2]
[331735255,1720718232505,-260.0,0.0001347,2]
[331735256,1720718232529,-3166.236761,0.00013498,2]
[331735257,1720718232556,-155.0,0.00013574,2]
[331735258,1720718232580,-260.0,0.0001358,2]
[331735259,1720718232604,-3166.236761,0.00013665,2]
[331735260,1720718232629,-260.0,0.0001368,2]
[331735261,1720718232653,-1251.2596,0.00013688,2]
[331735262,1720718232677,-250.0,0.00013699,2]
[331735263,1720718232701,-1007.89,0.00013699,2]
[331735264,1720718232724,-200.0,0.00013699,2]
[331735265,1720718232748,-245.31,0.00013699,2]
[331735266,1720718232773,-344.28606759,0.00013755,2]
[331735267,1720718232873,-3246.57228195,0.00013759,2]
[331735268,1720718232899,-28903.8795,0.0001377,2]
[331735269,1720718232925,-1976.53,0.00013775,2]
[331735270,1720718232949,-165.454,0.00013775,2]
[331735271,1720718232975,-585.63,0.00013778,3]
[331735272,1720718232999,-546.95,0.00013787,2]
[331735273,1720718233023,-677.85,0.00013787,2]
[331735274,1720718233046,-570.24,0.00013787,2]
[331735275,1720718233071,-824.27,0.00013787,2]
[331735276,1720718233094,-597.32264707,0.00013787,2]
[331735277,1720718233120,-500.0,0.00013787,2]
[331735278,1720718233144,-500.0,0.00013787,2]
[331735279,1720718233169,-199.22172282,0.00013787,2]
[331735280,1720718233195,-500.0,0.00013787,2]
[331735281,1720718233219,-271.24,0.00013787,2]
[331735282,1720718233242,-500.0,0.00013787,2]
[331735283,1720718233265,-500.0,0.00013787,2]
[331735284,1720718233290,-500.0,0.00013787,2]
[331735285,1720718233315,-500.0,0.00013787,2]
[331735286,1720718233339,-595.85,0.00013787,2]
[331735287,1720718233364,-10444.78931104,0.00013788,2]
[331735294,1720718268969,500.0,0.0001126,2]
[331735322,1720718463729,1000.0,0.00014,30]
[331735334,1720718546603,2164.29143357,0.00011199,2]
[331735335,1720718546634,268.21592232,0.00011199,2]
[331735337,1720718563240,358.29,0.00010631,2]
[331735339,1720718571133,4332.22701874,0.00011199,2]
[331735340,1720718571162,4920.31936236,0.00011199,2]
[331735343,1720718588807,296.35955853,0.00011199,2]
[331735344,1720718588836,237.14337077,0.00011199,2]
[331735346,1720718603526,273.0,0.00027,120]
[331735364,1720718720741,522.89738068,9e-05,2]
[331735367,1720718730141,678.51401319,0.00010909,2]
[331735368,1720718730171,40.72892273,0.00010909,2]
[331735369,1720718737346,3584.86523324,0.00011,2]
[331735371,1720718744895,550.19548943,0.00011199,2]
[331735372,1720718744930,2480.76404714,0.00011199,2]
[331735373,1720718750498,482.75596204,0.00010909,2]
[331735385,1720718825474,377.31017061,0.00011199,2]
[331735398,1720718875117,310.0,0.00011199,2]
[331735400,1720718882111,1565.8487411,0.0001,2]
[331735401,1720718882143,3911.51751324,0.0001,2]
[331735402,1720718882170,12750.15718396,0.0001,2]
[331735405,1720718890045,5516.67920063,0.00011199,2]
[331735409,1720718922187,206.40300481,0.00011199,2]
[331735425,1720718989057,413.27406791,0.00011199,2]
[331735427,1720719001069,155.14665417,0.00011199,2]
[331735432,1720719023380,156.1108163,0.00011199,2]
[331735435,1720719032085,-220.0,0.00011799,2]
[331735436,1720719032095,-656.11960137,0.000118,2]
[331735437,1720719032168,-28206.65741174,0.000118,2]
[331735438,1720719032178,-2263.46,0.00012392,2]
[331735439,1720719032188,-250.0,0.00012423,2]
[331735440,1720719032197,-200.0,0.0001247,2]
[331735441,1720719032206,-150.0,0.00012497,2]
[331735442,1720719032216,-192.16,0.0001257,2]
[331735443,1720719032225,-358.29,0.00012895,2]
[331735444,1720719032235,-500.0,0.00012904,2]
[331735445,1720719032246,-621.78890717,0.00013,2]
[331735446,1720719032257,-600.30000237,0.00013,2]
[331735447,1720719032267,-158.37,0.00013006,2]
[331735448,1720719032276,-3077.33409396,0.0001305,2]
[331735449,1720719032286,-158.37,0.00013051,2]
[331735450,1720719032299,-158.37,0.00013096,2]
[331735451,1720719032309,-2203.21631698,0.00013128,2]
[331735452,1720719032319,-1105.1,0.00013141,2]
[331735453,1720719032328,-158.37,0.00013141,2]
[331735454,1720719032339,-158.37,0.00013187,2]
[331735455,1720719032350,-158.37,0.00013232,2]
[331735456,1720719032362,-158.37,0.00013277,2]
[331735457,1720719032371,-158.37,0.00013322,2]
[331735458,1720719032381,-158.37,0.00013367,2]
[331735459,1720719032391,-158.37,0.00013412,2]
[331735460,1720719032400,-5828.0,0.00013448,2]
[331735461,1720719032410,-158.37,0.00013458,2]
[331735462,1720719032419,-158.37,0.00013503,2]
[331735463,1720719032428,-206.40300481,0.00013543,2]
[331735464,1720719032437,-530.62911332,0.00013543,2]
[331735465,1720719032446,-158.37,0.00013548,2]
[331735466,1720719032455,-547.24050391,0.00013574,2]
[331735467,1720719032465,-9857.10795239,0.0001358,2]
[331735468,1720719032474,-158.37,0.00013593,2]
[331735469,1720719032483,-158.37,0.00013638,2]
[331735470,1720719032493,-2416.64038706,0.00013681,2]
[331735471,1720719032502,-158.37,0.00013684,2]
[331735472,1720719032512,-4527.0996,0.00013688,2]
[331735473,1720719032521,-3061.2239,0.00013688,2]
[331735474,1720719032530,-800.0,0.00013699,2]
[331735475,1720719032540,-768.07,0.00013699,2]
[331735476,1720719032549,-800.0,0.00013699,2]
[331735477,1720719032559,-800.0,0.00013699,2]
[331735478,1720719032569,-503.94,0.00013699,2]
[331735479,1720719032578,-800.0,0.00013699,2]
[331735480,1720719032588,-800.0,0.00013699,2]
[331735481,1720719032598,-800.0,0.00013699,2]
[331735482,1720719032607,-800.0,0.00013699,2]
[331735483,1720719032617,-800.0,0.00013699,2]
[331735484,1720719032626,-800.0,0.00013699,2]
[331735485,1720719032635,-800.0,0.00013699,2]
[331735486,1720719032645,-600.315,0.00013778,2]
[331735487,1720719032655,-500.0,0.00013787,2]
[331735488,1720719032664,-350.58,0.00013787,2]
[331735489,1720719032673,-763.06,0.00013787,2]
[331735490,1720719032683,-500.0,0.00013787,2]
[331735491,1720719032692,-762.0,0.00013787,2]
[331735492,1720719032701,-560.21,0.00013787,2]
[331735493,1720719032711,-200.0,0.00013787,7]
[331735494,1720719032720,-582.21,0.00013787,2]
[331735495,1720719032730,-512.97,0.00013787,2]
[331735496,1720719032740,-452.16776681,0.00013787,2]
[331735497,1720719032752,-124.20223319,0.00013787,2]
[331735499,1720719032762,-517.42,0.00013787,2]
[331735501,1720719032771,-657.18,0.00013787,2]
[331735502,1720719032780,-610.14,0.00013787,2]
[331735503,1720719032790,-500.0,0.00013787,2]
[331735504,1720719032799,-678.47,0.00013787,2]
[331735505,1720719032808,-23.9905805,0.00013787,2]
[331735506,1720719032832,-550.1394195,0.00013787,2]
[331735507,1720719032841,-84.02702345,0.00013787,2]
[331735508,1720719032858,-503.04297655,0.00013787,2]
[331735509,1720719032868,-500.0,0.00013787,2]
[331735510,1720719032877,-711.95,0.00013787,2]
[331735511,1720719032886,-524.87,0.00013787,2]
[331735512,1720719032896,-500.0,0.00013787,2]
[331735513,1720719032906,-500.0,0.00013787,2]
[331735514,1720719032915,-500.0,0.00013787,2]
[331735515,1720719032924,-602.3551625,0.00013787,2]
[331735517,1720719032934,-500.0,0.00013787,2]
[331735518,1720719032943,-187.62,0.00013787,2]
[331735520,1720719032953,-500.0,0.00013787,2]
[331735521,1720719032962,-500.0,0.00013787,2]
[331735522,1720719032972,-485.626164,0.00013787,2]
[331735523,1720719032981,-673.75,0.00013787,2]
[331735524,1720719032991,-524.16,0.00013787,2]
[331735525,1720719033001,-862.5,0.00013787,2]
[331735526,1720719033010,-63251.75197893,0.00013788,2]
[331735527,1720719033022,-143825.26251003,0.00013788,2]
[331735528,1720719033032,-260.0,0.0001379,2]
[331735529,1720719033042,-321.76546126,0.00013796,2]
[331735530,1720719033052,-169.80600212,0.000138,2]
[331735531,1720719033062,-688.32,0.00013806,2]
[331735532,1720719033075,-500.0,0.00013807,2]
[331735533,1720719033085,-1058.09,0.00013807,2]
[331735534,1720719033095,-500.0,0.00013807,2]
[331735535,1720719033106,-598.32,0.00013807,2]
[331735536,1720719033115,-5377.64443982,0.00013808,2]
[331735537,1720719033125,-1000.0,0.0001381,2]
[331735538,1720719033135,-169.80600208,0.00013825,2]
[331735539,1720719033242,-3166.236761,0.00013831,2]
[331735540,1720719033252,-677.85,0.00013842,2]
[331735541,1720719033262,-570.24,0.00013842,2]
[331735542,1720719033271,-824.27,0.00013842,2]
[331735543,1720719033280,-500.0,0.00013842,2]
[331735544,1720719033290,-280.42953181,0.00013842,2]
[331735545,1720719033305,-595.85,0.00013842,2]
[331735546,1720719033316,-450.81142648,0.00013842,2]
[331735547,1720719033325,-763.06,0.00013842,2]
[331735548,1720719033334,-500.0,0.00013842,2]
[331735549,1720719033345,-762.0,0.00013842,2]
[331735550,1720719033355,-560.21,0.00013842,2]
[331735551,1720719033364,-200.0,0.00013842,7]
[331735552,1720719033373,-582.21,0.00013842,2]
[331735553,1720719033384,-512.97,0.00013842,2]
[331735554,1720719033394,-576.37,0.00013842,2]
[331735555,1720719033404,-517.42,0.00013842,2]
[331735556,1720719033413,-657.18,0.00013842,2]
[331735557,1720719033423,-610.14,0.00013842,2]
[331735558,1720719033433,-500.0,0.00013842,2]
[331735559,1720719033443,-678.47,0.00013842,2]
[331735560,1720719033452,-574.13,0.00013842,2]
[331735561,1720719033462,-587.07,0.00013842,2]
[331735562,1720719033472,-500.0,0.00013842,2]
[331735563,1720719033481,-711.95,0.00013842,2]
[331735564,1720719033490,-524.87,0.00013842,2]
[331735565,1720719033500,-400.56295444,0.00013842,2]
[331735566,1720719033510,-410.082942,0.00013842,2]
[331735567,1720719033520,-500.0,0.00013842,2]
[331735568,1720719033529,-500.0,0.00013842,2]
[331735569,1720719033539,-423.37915543,0.00013842,2]
[331735570,1720719033548,-500.0,0.00013842,2]
[331735571,1720719033557,-673.75,0.00013842,2]
[331735572,1720719033568,-524.16,0.00013842,2]
[331735573,1720719033578,-862.5,0.00013842,2]
[331735574,1720719033588,-1332.75371993,0.00013849,2]
[331735575,1720719033598,-520.08653154,0.00013849,2]
[331735576,1720719033607,-1332.75371993,0.00013849,2]
[331735577,1720719033617,-661.54354703,0.00013849,2]
[331735578,1720719033627,-169.80600208,0.0001385,2]
[331735579,1720719033636,-665.81,0.00013859,2]
[331735580,1720719033645,-531.5,0.00013859,2]
[331735581,1720719033654,-500.0,0.00013859,2]
[331735582,1720719033664,-743.92,0.00013859,2]
[331735583,1720719033674,-500.0,0.00013859,2]
[331735584,1720719033683,-688.32,0.00013861,2]
[331735585,1720719033692,-500.0,0.00013862,2]
[331735586,1720719033702,-1058.09,0.00013862,2]
[331735587,1720719033712,-500.0,0.00013862,2]
[331735588,1720719033722,-598.32,0.00013862,2]
[331735589,1720719033732,-169.80600208,0.00013875,2]
[331735590,1720719033742,-57689.70510453,0.0001388,2]
[331735591,1720719033752,-500.0,0.00013887,2]
[331735592,1720719033761,-500.0,0.00013888,2]
[331735593,1720719033771,-500.0,0.00013888,2]
[331735594,1720719033781,-536.16233442,0.00013889,2]
[331735595,1720719033790,-527.47467871,0.00013889,2]
[331735596,1720719033800,-155.22310351,0.00013889,2]
[331735597,1720719033810,-518.99335671,0.00013889,2]
[331735598,1720719033821,-599.17041416,0.00013889,2]
[331735599,1720719033830,-260.0,0.0001389,2]
[331735600,1720719033840,-290.0,0.0001389,2]
[331735601,1720719033853,-220.33,0.0001389,3]
[331735602,1720719033862,-677.85,0.00013896,2]
[331735603,1720719033871,-570.24,0.00013896,2]
[331735604,1720719033881,-824.27,0.00013896,2]
[331735605,1720719033891,-500.0,0.00013896,2]
[331735606,1720719033901,-595.85,0.00013896,2]
[331735607,1720719033910,-763.06,0.00013896,2]
[331735608,1720719033920,-443.28,0.00013896,2]
[331735609,1720719033930,-762.0,0.00013896,2]
[331735610,1720719033940,-560.21,0.00013896,2]
[331735611,1720719033950,-200.0,0.00013896,7]
[331735612,1720719033960,-582.21,0.00013896,2]
[331735613,1720719033970,-512.97,0.00013896,2]
[331735614,1720719033980,-576.37,0.00013896,2]
[331735615,1720719033989,-517.42,0.00013896,2]
[331735616,1720719033999,-657.18,0.00013896,2]
[331735617,1720719034008,-610.14,0.00013896,2]
[331735618,1720719034023,-500.0,0.00013896,2]
[331735619,1720719034033,-678.47,0.00013896,2]
[331735620,1720719034043,-574.13,0.00013896,2]
[331735621,1720719034053,-587.07,0.00013896,2]
[331735622,1720719034063,-500.0,0.00013896,2]
[331735623,1720719034074,-711.95,0.00013896,2]
[331735624,1720719034083,-524.87,0.00013896,2]
[331735625,1720719034093,-500.0,0.00013896,2]
[331735626,1720719034103,-216.72188441,0.00013896,2]
[331735627,1720719034112,-500.0,0.00013896,2]
[331735628,1720719034122,-673.75,0.00013896,2]
[331735629,1720719034132,-524.16,0.00013896,2]
[331735630,1720719034141,-862.5,0.00013896,2]
[331735631,1720719034150,-500.0,0.00013899,2]
[331735632,1720719034160,-526.12,0.00013899,2]
[331735633,1720719034170,-500.0,0.00013899,2]
[331735634,1720719034190,-183.85785098,0.00013899,2]
[331735635,1720719034202,-1444.3966819,0.00013899,2]
[331735636,1720719034212,-722.84871215,0.00013899,2]
[331735637,1720719034223,-218.87668699,0.00013899,2]
[331735638,1720719034233,-675.76502173,0.00013899,2]
[331735639,1720719034243,-155.62826715,0.00013899,2]
[331735640,1720719034253,-10000.0,0.000139,2]
[331735641,1720719034263,-5191.2482,0.000139,2]
[331735642,1720719034273,-169.08322514,0.000139,2]
[331735643,1720719034283,-169.80600208,0.000139,2]
[331735644,1720719034294,-169.88866675,0.000139,2]
[331735645,1720719034306,-523.04786748,0.000139,2]
[331735646,1720719034319,-998.93537444,0.000139,2]
[331735647,1720719034330,-665.81,0.00013914,2]
[331735648,1720719034341,-531.5,0.00013914,2]
[331735649,1720719034351,-500.0,0.00013914,2]
[331735650,1720719034361,-743.92,0.00013914,2]
[331735651,1720719034371,-514.87602688,0.00013914,2]
[331735652,1720719034382,-688.32,0.00013916,2]
[331735653,1720719034393,-500.0,0.00013917,2]
[331735654,1720719034402,-1058.09,0.00013917,2]
[331735655,1720719034412,-500.0,0.00013917,2]
[331735656,1720719034422,-598.32,0.00013917,2]
[331735657,1720719034432,-301.0,0.0001395,2]
[331735658,1720719034442,-677.85,0.00013951,2]
[331735659,1720719034451,-570.24,0.00013951,2]
[331735660,1720719034461,-824.27,0.00013951,2]
[331735661,1720719034471,-500.0,0.00013951,2]
[331735662,1720719034481,-595.85,0.00013951,2]
[331735663,1720719034492,-763.06,0.00013951,2]
[331735664,1720719034501,-762.0,0.00013951,2]
[331735665,1720719034511,-560.21,0.00013951,2]
[331735666,1720719034521,-200.0,0.00013951,7]
[331735667,1720719034531,-582.21,0.00013951,2]
[331735668,1720719034541,-512.97,0.00013951,2]
[331735669,1720719034551,-576.37,0.00013951,2]
[331735670,1720719034562,-517.42,0.00013951,2]
[331735671,1720719034575,-657.18,0.00013951,2]
[331735672,1720719034586,-610.14,0.00013951,2]
[331735673,1720719034596,-500.0,0.00013951,2]
[331735674,1720719034607,-678.47,0.00013951,2]
[331735675,1720719034618,-574.13,0.00013951,2]
[331735676,1720719034628,-587.07,0.00013951,2]
[331735677,1720719034639,-500.0,0.00013951,2]
[331735678,1720719034648,-711.95,0.00013951,2]
[331735679,1720719034658,-524.87,0.00013951,2]
[331735680,1720719034668,-500.0,0.00013951,2]
[331735681,1720719034677,-500.0,0.00013951,2]
[331735682,1720719034687,-673.75,0.00013951,2]
[331735683,1720719034696,-524.16,0.00013951,2]
[331735684,1720719034706,-862.5,0.00013951,2]
[331735685,1720719034716,-500.0,0.00013954,2]
[331735686,1720719034725,-526.12,0.00013954,2]
[331735687,1720719034735,-500.0,0.00013954,2]
[331735688,1720719034744,-665.81,0.00013969,2]
[331735689,1720719034754,-531.5,0.00013969,2]
[331735690,1720719034764,-500.0,0.00013969,2]
[331735691,1720719034773,-743.92,0.00013969,2]
[331735692,1720719034783,-688.32,0.00013971,2]
[331735693,1720719034792,-500.0,0.00013972,2]
[331735694,1720719034802,-1058.09,0.00013972,2]
[331735695,1720719034811,-500.0,0.00013972,2]
[331735696,1720719034823,-598.32,0.00013972,2]
[331735697,1720719034833,-532.47,0.00013988,2]
[331735698,1720719034842,-588.57,0.00013988,2]
[331735699,1720719034852,-547.49,0.00013988,2]
[331735700,1720719034861,-623.38,0.00013988,2]
[331735701,1720719034871,-630.67,0.00013988,2]
[331735702,1720719034880,-541.25,0.00013988,2]
[331735703,1720719034889,-724.02,0.00013988,2]
[331735704,1720719034899,-773.3,0.00013988,2]
[331735705,1720719034908,-554.36,0.00013988,2]
[331735706,1720719034918,-155.31483576,0.00013989,2]
[331735707,1720719034928,-400.0,0.00013989,2]
[331735708,1720719034938,-159.30941425,0.00013989,2]
[331735709,1720719034947,-155.29862192,0.00013989,2]
[331735710,1720719034957,-405.14638905,0.00013989,2]
[331735711,1720719034966,-242.40389105,0.00013989,2]
[331735712,1720719034976,-227.30730583,0.00013989,2]
[331735713,1720719034985,-155.29460536,0.00013989,2]
[331735714,1720719034994,-158.64365863,0.00013989,2]
[331735715,1720719035004,-163.93444029,0.00013989,2]
[331735716,1720719035013,-235.94587051,0.00013989,2]
[331735717,1720719035023,-198.00670023,0.0001399,2]
[331735718,1720719035033,-260.0,0.0001399,2]
[331735719,1720719035042,-290.0,0.0001399,2]
[331735720,1720719035052,-1253.6380245,0.0001399,2]
[331735721,1720719035061,-985.4342683,0.0001399,2]
[331735722,1720719035072,-717.2305121,0.0001399,2]
[331735723,1720719035081,-449.0267559,0.0001399,2]
[331735724,1720719035187,-180.8229996,0.0001399,2]
[331735725,1720719035197,-198.00670023,0.0001399,2]
[331735726,1720719035207,-1521.8417807,0.00013996,2]
[331735727,1720719035216,-803.3693945,0.00013996,2]
[331735728,1720719035225,-3166.236761,0.00013998,2]
[331735729,1720719035234,-155.0,0.00013999,2]
[331735730,1720719035243,-155.33944343,0.00013999,2]
[331735731,1720719035253,-346.43618517,0.00013999,2]
[331735732,1720719035262,-155.24332289,0.00013999,2]
[331735733,1720719035271,-155.06185702,0.00013999,2]
[331735734,1720719035280,-367.25582466,0.00013999,2]
[331735735,1720719035289,-308.48390406,0.00013999,2]
[331735736,1720719035304,-3198.0,0.00014,2]
[331735737,1720719035313,-644.313,0.00014,2]
[331735738,1720719035323,-521.142,0.00014,2]
[331735739,1720719035333,-1655.0,0.00014,2]
[331735740,1720719035343,-1820.0,0.00014,2]
[331735741,1720719035352,-1251.0,0.00014,2]
[331735742,1720719035361,-360.723,0.00014,2]
[331735743,1720719035374,-861.0,0.00014,2]
[331735744,1720719035385,-452595.01533602,0.00014,2]
[331735745,1720719035644,-372193.4558198,0.00014,2]
[331735747,1720719038130,-1304.0,0.0001372,2]
[331735748,1720719038141,-500.0,0.00013807,2]
[331735749,1720719038150,-500.0,0.00013862,2]
[331735750,1720719038159,-340.39744622,0.000139,2]
[331735751,1720719038168,-500.0,0.00013917,2]
[331735752,1720719038177,-500.0,0.00013972,2]
[331735753,1720719038187,-27096.10255378,0.00014,2]
[331735759,1720719038918,-564.04,0.00013787,2]
[331735760,1720719038927,-567.66000001,0.00014,2]
[331735761,1720719038939,-289.61,0.00014,2]
[331735762,1720719038949,-6143.0115967,0.00014,2]
[331735763,1720719038960,-250.39418971,0.00014,2]
[331735764,1720719038978,-5190.66473126,0.00014,2]
[331735765,1720719038990,-1177.34185166,0.00014,2]
[331735775,1720719040381,-1157.995,0.00013759,2]
[331735776,1720719040399,-174.75871993,0.00013759,2]
[331735777,1720719040408,-564.04,0.00013842,2]
[331735778,1720719040418,-564.04,0.00013896,2]
[331735779,1720719040427,-564.04,0.00013951,2]
[331735780,1720719040435,-2032.09985845,0.00014,2]
[331735781,1720719040446,-5605.36,0.00014,2]
[331735782,1720719040554,-5787.32676936,0.00014,2]
[331735783,1720719040572,-21696.16652626,0.00014,2]
[331735835,1720719043793,-5506.1859831,0.00014,2]
[331735836,1720719043804,-800.90047991,0.00014,2]
[331735837,1720719043819,-23620.68287744,0.00014,2]
[331735838,1720719043830,-61782.82548741,0.00014,2]
[331735839,1720719043839,-776.0,0.00014,2]
[331735840,1720719043848,-126580.99400551,0.00014,2]
[331735841,1720719043863,-869.95370905,0.00014,2]
[331735842,1720719043875,-9695.09656367,0.00014,2]
[331735875,1720719046523,-252.80408456,0.00013574,2]
[331735876,1720719046609,-7.92205886,0.00013574,2]
[331735877,1720719046618,-1687.58036398,0.0001372,2]
[331735881,1720719059991,134279.01114861,0.00011199,2]
[331735887,1720719114465,500.0,0.0001126,2]
[331735907,1720719191088,359.52,0.00010958,2]
[331735910,1720719210501,800.0,0.00026986,120]
[331735912,1720719220048,140.48,0.00011199,2]
[331735913,1720719220077,2598.27386802,0.00011199,2]
[331735915,1720719230063,3133.82317894,0.00011199,2]
[331735916,1720719230092,2325.18646357,0.00011199,2]
[331735931,1720719296192,3076.35589275,0.00011199,2]
[331735932,1720719296463,330.55469064,0.00011199,2]
[331735933,1720719296491,1810.85684834,0.00011199,2]
[331735935,1720719305570,800.0,0.00026986,120]
[331735937,1720719308919,1253.86166614,0.00011199,2]
[331735938,1720719314657,332.24489237,0.00011199,2]
[331735939,1720719314689,1654.58049726,0.00011199,2]
[331735943,1720719329649,1500.0,0.00011199,2]
[331735945,1720719339923,1841.71791493,0.00011199,2]
[331735946,1720719339952,163.51066959,0.00011199,2]
[331735950,1720719348652,1200.0,0.00011199,2]
[331735961,1720719398524,800.0,0.00026986,120]
[331735967,1720719433207,2910.0,0.00025,60]
[331735972,1720719450352,457.35417858,0.00011199,2]
[331735974,1720719455530,628.29145865,0.00011199,2]
[331735978,1720719475215,223.07039983,0.00011199,2]
[331735981,1720719483497,269.8232753,0.00011199,2]
[331735985,1720719513952,159.06163716,0.00011199,2]
[331735993,1720719542996,800.0,0.00026986,120]
[331735994,1720719543264,800.0,0.00026986,120]
[331735998,1720719564009,800.0,0.00026986,120]
[331736000,1720719572703,88.67842903,0.00011199,2]
[331736001,1720719572732,574.32707058,0.00011199,2]
[331736002,1720719572754,384.99463867,0.00011199,2]
[331736004,1720719581364,155.51811222,0.00011199,2]
[331736007,1720719591229,519.715698,0.00011199,2]
[331736008,1720719594807,800.0,0.00026986,120]
[331736010,1720719607593,800.0,0.00026986,120]
[331736015,1720719638142,519.59298252,0.00011199,2]
[331736017,1720719645350,800.0,0.00026986,120]
[331736021,1720719659306,-157.7415,0.000117,2]
[331736024,1720719663874,800.0,0.00026986,120]
[331736027,1720719726823,800.0,0.00026986,120]
[331736028,1720719731150,341.54,0.00010869,2]
[331736031,1720719750125,-160.27755314,0.00012173,2]
[331736032,1720719750152,-400.0,0.00012273,2]
[331736033,1720719750178,-150.0,0.00012718,2]
[331736034,1720719750202,-281.7,0.00012718,2]
[331736035,1720719750226,-840.0,0.00012747,2]
[331736036,1720719750250,-5146.14065283,0.00012747,2]
[331736037,1720719750276,-250.0,0.0001276,2]
[331736038,1720719750301,-300.0,0.00012892,2]
[331736039,1720719750327,-214.13,0.00012893,2]
[331736040,1720719750353,-17257.75179403,0.00012893,2]
[331736042,1720719785837,800.0,0.00026986,120]
[331736043,1720719828576,-321.05825438,0.00012173,2]
[331736044,1720719828600,-155.0,0.00012302,2]
[331736045,1720719828624,-375.86975845,0.00012302,2]
[331736046,1720719828648,-267.45812738,0.00012314,2]
[331736047,1720719828671,-321.05825436,0.00012396,2]
[331736048,1720719828695,-321.05825436,0.00012618,2]
[331736049,1720719828720,-722.00820597,0.00012893,2]
[331736050,1720719828743,-1233.28,0.00012893,2]
[331736051,1720719828766,-500.0,0.00012904,2]
[331736052,1720719828791,-1250.0,0.00013,2]
[331736053,1720719828814,-533.2091451,0.00013,2]
[331736054,1720719846773,800.0,0.00026986,120]
[331736055,1720719873267,500.52616261,0.00025,60]
[331736056,1720719891497,389.45892078,0.0001126,2]
[331736057,1720719906781,800.0,0.00026986,120]
[331736058,1720719963328,800.0,0.00026986,120]
[331736059,1720720024881,800.0,0.00026986,120]
[331736060,1720720054231,1904.51355182,0.00011199,2]
[331736061,1720720078054,2258.05742928,0.00011199,2]
[331736062,1720720086155,800.0,0.00026986,120]
[331736063,1720720142768,800.0,0.00026986,120]
[331736069,1720720206524,800.0,0.00026986,120]
[331736070,1720720214385,1332.75371993,0.00011199,2]
[331736072,1720720232277,-315.29707946,0.00012314,2]
[331736073,1720720232424,-53.88585095,0.00012314,2]
[331736074,1720720232433,-215.11414955,0.00012763,2]
[331736075,1720720232444,-112.88585045,0.00012763,2]
[331736076,1720720232453,-250.0,0.00012858,2]
[331736077,1720720232462,-190.26,0.00012871,2]
[331736078,1720720232471,-950.21906336,0.00013,2]
[331736079,1720720232481,-864.02092998,0.00013128,2]
[331736080,1720720232498,-1082.26155855,0.00013128,2]
[331736081,1720720232509,-402.14251682,0.00013128,2]